[Event "*** Titled Tuesday Blitz"]
[Site "Chess.com"]
[Date "2021.02.16"]
[Round "2"]
[White "ChampStan"]
[Black "marianokar"]
[Result "1-0"]
[WhiteElo "2243"]
[BlackElo "2429"]
[TimeControl "180+1"]
[EndTime "10:19:25 PST"]
[Termination "ChampStan won by checkmate"]

1. d4 {[%clk 0:03:00]} 1... c5 {[%clk 0:02:58.2]} 2. d5 {[%clk 0:02:52.8]} 2...
e5 {[%clk 0:02:57.8]} 3. e4 {[%clk 0:02:48]} 3... d6 {[%clk 0:02:57.7]} 4. Nc3
{[%clk 0:02:44.3]} 4... Nf6 {[%clk 0:02:57.7]} 5. g3 {[%clk 0:02:39.8]} 5... Be7
{[%clk 0:02:57.8]} 6. h4 {[%clk 0:02:39.3]} 6... O-O {[%clk 0:02:57.3]} 7. Bh3
{[%clk 0:02:38]} 7... Nbd7 {[%clk 0:02:51.5]} 8. Nf3 {[%clk 0:02:35.2]} 8... Ne8
{[%clk 0:02:49.8]} 9. a4 {[%clk 0:02:31.9]} 9... g6 {[%clk 0:02:48.6]} 10. Bh6
{[%clk 0:02:30.2]} 10... Ng7 {[%clk 0:02:48.7]} 11. Qd2 {[%clk 0:02:26.2]} 11...
Nf6 {[%clk 0:02:48.6]} 12. Bxc8 {[%clk 0:02:25.7]} 12... Qxc8 {[%clk 0:02:48]}
13. Bg5 {[%clk 0:02:08.2]} 13... Qg4 {[%clk 0:02:22.8]} 14. Qe2 {[%clk
0:02:05.9]} 14... a6 {[%clk 0:02:16.7]} 15. Nd2 {[%clk 0:02:00.7]} 15... Qd7
{[%clk 0:02:11.9]} 16. Nc4 {[%clk 0:01:56.1]} 16... Qc7 {[%clk 0:01:57.5]} 17.
a5 {[%clk 0:01:54.6]} 17... Rae8 {[%clk 0:01:54.8]} 18. Bh6 {[%clk 0:01:26.4]}
18... Kh8 {[%clk 0:01:53.9]} 19. g4 {[%clk 0:01:22.3]} 19... Ng8 {[%clk
0:01:52.5]} 20. Bd2 {[%clk 0:01:06.4]} 20... f5 {[%clk 0:00:39.8]} 21. h5 {[%clk
0:01:04.3]} 21... f4 {[%clk 0:00:39.9]} 22. h6 {[%clk 0:00:57.9]} 22... Bg5
{[%clk 0:00:35.7]} 23. hxg7+ {[%clk 0:00:56.8]} 23... Kxg7 {[%clk 0:00:36.6]}
24. f3 {[%clk 0:00:50.9]} 24... Nf6 {[%clk 0:00:33]} 25. O-O-O {[%clk
0:00:47.8]} 25... Rh8 {[%clk 0:00:32.9]} 26. Kb1 {[%clk 0:00:44.9]} 26... Rb8
{[%clk 0:00:32.6]} 27. Na4 {[%clk 0:00:39.9]} 27... Nd7 {[%clk 0:00:32.1]} 28.
Nab6 {[%clk 0:00:37.8]} 28... Nf6 {[%clk 0:00:31.4]} 29. Bc3 {[%clk 0:00:36.1]}
29... Rbe8 {[%clk 0:00:31]} 30. Rh2 {[%clk 0:00:19.6]} 30... h6 {[%clk
0:00:27.6]} 31. Rdh1 {[%clk 0:00:19.2]} 31... Rhf8 {[%clk 0:00:25.9]} 32. Be1
{[%clk 0:00:19.6]} 32... Rh8 {[%clk 0:00:25.1]} 33. Bh4 {[%clk 0:00:19.5]} 33...
Bxh4 {[%clk 0:00:24.8]} 34. Rxh4 {[%clk 0:00:19.7]} 34... g5 {[%clk 0:00:25.2]}
35. R4h3 {[%clk 0:00:20.2]} 35... Kg6 {[%clk 0:00:24.9]} 36. Qh2 {[%clk
0:00:20.1]} 36... Ng8 {[%clk 0:00:24]} 37. Rh5 {[%clk 0:00:20.2]} 37... Rh7
{[%clk 0:00:22.5]} 38. Na4 {[%clk 0:00:14.6]} 38... Ree7 {[%clk 0:00:20.6]} 39.
Nc3 {[%clk 0:00:13.5]} 39... Nf6 {[%clk 0:00:20.7]} 40. Rxh6+ {[%clk 0:00:11.9]}
40... Kf7 {[%clk 0:00:17.6]} 41. Rxh7+ {[%clk 0:00:11.7]} 41... Ke8 {[%clk
0:00:18.5]} 42. Rxe7+ {[%clk 0:00:11.2]} 42... Qxe7 {[%clk 0:00:17.9]} 43. Qh8+
{[%clk 0:00:11.6]} 43... Kd7 {[%clk 0:00:18.5]} 44. Nb6+ {[%clk 0:00:11.4]}
44... Kc7 {[%clk 0:00:19.4]} 45. Qc8# {[%clk 0:00:11.4]} 1-0

[Event "*** Titled Tuesday Blitz"]
[Site "Chess.com"]
[Date "2021.02.16"]
[Round "2"]
[White "rachidhuilda"]
[Black "BigAl"]
[Result "0-1"]
[WhiteElo "2272"]
[BlackElo "2470"]
[TimeControl "180+1"]
[EndTime "10:19:26 PST"]
[Termination "BigAl won on time"]

1. d4 {[%clk 0:02:59.6]} 1... g6 {[%clk 0:02:58]} 2. e4 {[%clk 0:02:59]} 2...
Bg7 {[%clk 0:02:58.6]} 3. Nc3 {[%clk 0:02:58.7]} 3... d6 {[%clk 0:02:59.2]} 4.
Nf3 {[%clk 0:02:58.2]} 4... a6 {[%clk 0:02:59.1]} 5. a4 {[%clk 0:02:57.4]} 5...
b6 {[%clk 0:02:59.4]} 6. Bd3 {[%clk 0:02:56.1]} 6... e6 {[%clk 0:02:57.9]} 7.
O-O {[%clk 0:02:55.6]} 7... Ne7 {[%clk 0:02:58.3]} 8. Be3 {[%clk 0:02:51.9]}
8... h6 {[%clk 0:02:58.4]} 9. Qd2 {[%clk 0:02:51.8]} 9... Bb7 {[%clk 0:02:58.8]}
10. Rfe1 {[%clk 0:02:51.4]} 10... Nd7 {[%clk 0:02:59.4]} 11. Rad1 {[%clk
0:02:51]} 11... g5 {[%clk 0:02:57.8]} 12. h3 {[%clk 0:02:50.2]} 12... Rg8 {[%clk
0:02:53.1]} 13. d5 {[%clk 0:02:38.1]} 13... e5 {[%clk 0:02:51]} 14. Ne2 {[%clk
0:02:36.8]} 14... Ng6 {[%clk 0:02:46.8]} 15. Ng3 {[%clk 0:02:34.6]} 15... Kf8
{[%clk 0:02:39.2]} 16. Nf5 {[%clk 0:02:33.8]} 16... Nf4 {[%clk 0:02:35.5]} 17.
Kh2 {[%clk 0:02:26.4]} 17... Bc8 {[%clk 0:02:32.9]} 18. g3 {[%clk 0:02:25.2]}
18... Nxd3 {[%clk 0:02:30.5]} 19. Qxd3 {[%clk 0:02:14.7]} 19... Nf6 {[%clk
0:02:29.9]} 20. Nd2 {[%clk 0:01:52.7]} 20... Qd7 {[%clk 0:02:20.7]} 21. b3
{[%clk 0:01:31.9]} 21... Nxe4 {[%clk 0:02:15.1]} 22. g4 {[%clk 0:01:19.2]} 22...
Nxd2 {[%clk 0:02:04.6]} 23. Bxd2 {[%clk 0:01:09.5]} 23... Qd8 {[%clk 0:02:03.2]}
24. Ng3 {[%clk 0:01:06]} 24... Qf6 {[%clk 0:01:51.6]} 25. Re2 {[%clk 0:01:00.6]}
25... Ke8 {[%clk 0:01:28.1]} 26. c4 {[%clk 0:00:54.8]} 26... a5 {[%clk
0:01:20.3]} 27. Ne4 {[%clk 0:00:46.7]} 27... Qg6 {[%clk 0:01:18.6]} 28. f3
{[%clk 0:00:40.9]} 28... f5 {[%clk 0:01:16.2]} 29. Ng3 {[%clk 0:00:36.2]} 29...
Rf8 {[%clk 0:01:14.7]} 30. c5 {[%clk 0:00:26]} 30... bxc5 {[%clk 0:01:11.4]} 31.
Qb5+ {[%clk 0:00:25.8]} 31... Kd8 {[%clk 0:01:08.8]} 32. Bxa5 {[%clk 0:00:20]}
32... fxg4 {[%clk 0:00:59]} 33. fxg4 {[%clk 0:00:17.6]} 33... e4 {[%clk
0:00:59.3]} 34. Be1 {[%clk 0:00:09.4]} 34... Be5 {[%clk 0:00:55.9]} 35. Qc4
{[%clk 0:00:08.4]} 35... Rf4 {[%clk 0:00:47.6]} 36. Re3 {[%clk 0:00:07.1]} 36...
Ba6 {[%clk 0:00:41.4]} 37. Qc2 {[%clk 0:00:03.9]} 37... Qf6 {[%clk 0:00:37.7]}
38. Rd2 {[%clk 0:00:02.8]} 38... Bd3 {[%clk 0:00:34]} 39. Rdxd3 {[%clk 0:00:02]}
39... exd3 {[%clk 0:00:33.9]} 40. Qxd3 {[%clk 0:00:02.6]} 40... Rb8 {[%clk
0:00:30.2]} 41. Qh7 {[%clk 0:00:01.8]} 41... Qf7 {[%clk 0:00:23.4]} 42. Qxh6
{[%clk 0:00:01.5]} 42... Qxd5 {[%clk 0:00:22.6]} 0-1

[Event "*** Titled Tuesday Blitz"]
[Site "Chess.com"]
[Date "2021.02.16"]
[Round "2"]
[White "SchmakAttack"]
[Black "mishanick"]
[Result "0-1"]
[WhiteElo "2592"]
[BlackElo "3011"]
[TimeControl "180+1"]
[EndTime "10:19:27 PST"]
[Termination "mishanick won by resignation"]

1. e4 {[%clk 0:03:00.9]} 1... c5 {[%clk 0:02:59.7]} 2. Nf3 {[%clk 0:03:00.6]}
2... d6 {[%clk 0:03:00.2]} 3. d4 {[%clk 0:03:01.1]} 3... cxd4 {[%clk 0:03:01.1]}
4. Nxd4 {[%clk 0:03:01.6]} 4... Nf6 {[%clk 0:03:01.6]} 5. Nc3 {[%clk 0:03:02.2]}
5... a6 {[%clk 0:03:02.3]} 6. Bg5 {[%clk 0:03:02]} 6... e6 {[%clk 0:03:00.5]} 7.
f4 {[%clk 0:03:02]} 7... Nbd7 {[%clk 0:02:57.1]} 8. Qe2 {[%clk 0:03:00.3]} 8...
h6 {[%clk 0:02:37.4]} 9. Bh4 {[%clk 0:02:56.7]} 9... e5 {[%clk 0:02:37.6]} 10.
O-O-O {[%clk 0:02:06.4]} 10... exf4 {[%clk 0:01:56.9]} 11. Nf5 {[%clk
0:01:26.9]} 11... Ne5 {[%clk 0:01:47.2]} 12. Bxf6 {[%clk 0:00:38.4]} 12... Qxf6
{[%clk 0:01:45.3]} 13. Nd5 {[%clk 0:00:38.8]} 13... Qd8 {[%clk 0:01:45.9]} 14.
Qf2 {[%clk 0:00:38.7]} 14... g6 {[%clk 0:01:41]} 15. Nd4 {[%clk 0:00:37.3]}
15... Bg7 {[%clk 0:01:39.6]} 16. h4 {[%clk 0:00:32.6]} 16... Bg4 {[%clk
0:01:37.5]} 17. Be2 {[%clk 0:00:30.2]} 17... h5 {[%clk 0:01:37.7]} 18. Kb1
{[%clk 0:00:27]} 18... O-O {[%clk 0:01:34.8]} 19. Qxf4 {[%clk 0:00:20.6]} 19...
Rc8 {[%clk 0:01:33.2]} 20. c3 {[%clk 0:00:18.9]} 20... b5 {[%clk 0:01:20.5]} 21.
Bxg4 {[%clk 0:00:18.4]} 21... Nxg4 {[%clk 0:01:20]} 22. Qd2 {[%clk 0:00:10.1]}
22... Re8 {[%clk 0:01:12.6]} 23. Rhe1 {[%clk 0:00:09.1]} 23... Qxh4 {[%clk
0:01:08.7]} 24. Nf3 {[%clk 0:00:09.1]} 24... Qd8 {[%clk 0:01:06.5]} 25. Nb4
{[%clk 0:00:08.8]} 25... a5 {[%clk 0:01:05.7]} 26. Nc2 {[%clk 0:00:09.2]} 26...
b4 {[%clk 0:01:05.4]} 27. cxb4 {[%clk 0:00:09]} 27... axb4 {[%clk 0:01:06.3]}
28. Nxb4 {[%clk 0:00:09.2]} 28... Qb6 {[%clk 0:01:01.9]} 29. Qxd6 {[%clk
0:00:08.8]} 29... Qb7 {[%clk 0:00:58.2]} 30. a3 {[%clk 0:00:08.5]} 30... Rxe4
{[%clk 0:00:51.2]} 31. Rxe4 {[%clk 0:00:06.8]} 31... Qxe4+ {[%clk 0:00:50.7]}
32. Qd3 {[%clk 0:00:07.5]} 32... Qe6 {[%clk 0:00:47.5]} 33. Qd7 {[%clk
0:00:06.7]} 33... Qc4 {[%clk 0:00:38.1]} 34. Qd2 {[%clk 0:00:03.7]} 34... Qb3
{[%clk 0:00:27.5]} 35. Rc1 {[%clk 0:00:03.2]} 35... Re8 {[%clk 0:00:26.3]} 36.
Qc2 {[%clk 0:00:03.6]} 36... Qe6 {[%clk 0:00:21.8]} 37. Re1 {[%clk 0:00:03.5]}
37... Ne3 {[%clk 0:00:21.5]} 38. Qd3 {[%clk 0:00:02.9]} 38... f5 {[%clk
0:00:19.9]} 39. Re2 {[%clk 0:00:03.3]} 39... f4 {[%clk 0:00:20.1]} 40. Qd2
{[%clk 0:00:01.6]} 40... Bf6 {[%clk 0:00:19.4]} 41. Qc1 {[%clk 0:00:01.9]} 41...
Rc8 {[%clk 0:00:18.8]} 42. Qd2 {[%clk 0:00:01.9]} 42... Qf5+ {[%clk 0:00:17.8]}
43. Qd3 {[%clk 0:00:01.9]} 43... Qxd3+ {[%clk 0:00:15]} 44. Nxd3 {[%clk
0:00:02.8]} 44... g5 {[%clk 0:00:15.5]} 45. a4 {[%clk 0:00:02.8]} 45... Rd8
{[%clk 0:00:15.8]} 46. a5 {[%clk 0:00:02.9]} 46... Rxd3 {[%clk 0:00:15.3]} 0-1

[Event "*** Titled Tuesday Blitz"]
[Site "Chess.com"]
[Date "2021.02.16"]
[Round "2"]
[White "EvgenyRomanov"]
[Black "AniJak"]
[Result "1-0"]
[WhiteElo "2600"]
[BlackElo "2331"]
[TimeControl "180+1"]
[EndTime "10:19:27 PST"]
[Termination "EvgenyRomanov won by resignation"]

1. d4 {[%clk 0:03:00.9]} 1... d5 {[%clk 0:02:59.4]} 2. c4 {[%clk 0:03:01.8]}
2... c6 {[%clk 0:02:59.5]} 3. Nf3 {[%clk 0:03:01.3]} 3... Nf6 {[%clk 0:02:59]}
4. Qc2 {[%clk 0:03:00.1]} 4... e6 {[%clk 0:02:56.1]} 5. Bg5 {[%clk 0:02:59]}
5... h6 {[%clk 0:02:55.3]} 6. Bh4 {[%clk 0:02:57.9]} 6... g5 {[%clk 0:02:42.9]}
7. Bg3 {[%clk 0:02:57]} 7... Bb4+ {[%clk 0:02:43.1]} 8. Nc3 {[%clk 0:02:53.4]}
8... Ne4 {[%clk 0:02:42.7]} 9. Nd2 {[%clk 0:02:47.4]} 9... Nxg3 {[%clk
0:02:24.3]} 10. hxg3 {[%clk 0:02:46.8]} 10... Qe7 {[%clk 0:02:17.9]} 11. e4
{[%clk 0:02:38.4]} 11... dxe4 {[%clk 0:02:09.3]} 12. Ndxe4 {[%clk 0:02:39.3]}
12... f5 {[%clk 0:02:07.9]} 13. Nd2 {[%clk 0:02:32.6]} 13... Nd7 {[%clk
0:02:03.8]} 14. O-O-O {[%clk 0:02:31.4]} 14... Nb6 {[%clk 0:01:59.1]} 15. a3
{[%clk 0:02:21.8]} 15... Bxc3 {[%clk 0:01:57.6]} 16. Qxc3 {[%clk 0:02:22.7]}
16... Bd7 {[%clk 0:01:58]} 17. d5 {[%clk 0:02:11.1]} 17... O-O-O {[%clk
0:01:57.8]} 18. d6 {[%clk 0:02:09.9]} 18... Qf7 {[%clk 0:01:29.5]} 19. Nf3
{[%clk 0:02:07.5]} 19... Kb8 {[%clk 0:01:22]} 20. Nxg5 {[%clk 0:02:04.3]} 20...
Qg8 {[%clk 0:00:55.4]} 21. Nf3 {[%clk 0:02:01.3]} 21... c5 {[%clk 0:00:55.7]}
22. Ne5 {[%clk 0:01:53.3]} 22... Ba4 {[%clk 0:00:55.7]} 23. Rd2 {[%clk
0:01:51.6]} 23... Be8 {[%clk 0:00:56.1]} 24. Be2 {[%clk 0:01:41.2]} 24... Nd7
{[%clk 0:00:45.7]} 25. Bf3 {[%clk 0:01:20.7]} 25... Nxe5 {[%clk 0:00:42.4]} 26.
Qxe5 {[%clk 0:01:21.6]} 26... Bd7 {[%clk 0:00:37]} 27. Qxc5 {[%clk 0:01:20.4]}
27... Rc8 {[%clk 0:00:36.7]} 28. Qb4 {[%clk 0:01:20.1]} 28... b6 {[%clk
0:00:37.2]} 29. Kb1 {[%clk 0:01:13.8]} 29... e5 {[%clk 0:00:36.7]} 30. Bd5
{[%clk 0:01:11.8]} 30... Qg6 {[%clk 0:00:36.6]} 31. Ka1 {[%clk 0:01:07.3]} 31...
Rc5 {[%clk 0:00:36.5]} 32. Rhd1 {[%clk 0:00:59.5]} 32... h5 {[%clk 0:00:29.3]}
33. Qc3 {[%clk 0:00:57.1]} 33... Re8 {[%clk 0:00:27.1]} 34. b4 {[%clk
0:00:53.6]} 34... Rcc8 {[%clk 0:00:26.6]} 35. c5 {[%clk 0:00:52.2]} 35... e4
{[%clk 0:00:20.3]} 36. c6 {[%clk 0:00:46.9]} 36... Qxd6 {[%clk 0:00:18.8]} 37.
cxd7 {[%clk 0:00:38.2]} 37... Qxd7 {[%clk 0:00:18.6]} 38. Qe3 {[%clk 0:00:22.8]}
38... Qa4 {[%clk 0:00:18.3]} 39. Kb2 {[%clk 0:00:18.6]} 39... Rc7 {[%clk
0:00:17.8]} 40. Qf4 {[%clk 0:00:16.9]} 40... Rc8 {[%clk 0:00:18]} 41. Rc1 {[%clk
0:00:16.6]} 41... Qb5 {[%clk 0:00:17.5]} 42. Be6 {[%clk 0:00:15.6]} 42... a5
{[%clk 0:00:14]} 43. Rxc7 {[%clk 0:00:14.4]} 43... Rxc7 {[%clk 0:00:14.3]} 44.
Rd8+ {[%clk 0:00:13.9]} 44... Kb7 {[%clk 0:00:13.4]} 45. Bd5+ {[%clk 0:00:13.8]}
45... Ka6 {[%clk 0:00:08.6]} 46. Qxc7 {[%clk 0:00:11.7]} 1-0

[Event "*** Titled Tuesday Blitz"]
[Site "Chess.com"]
[Date "2021.02.16"]
[Round "2"]
[White "jefferyx"]
[Black "Pelopidass"]
[Result "1-0"]
[WhiteElo "2981"]
[BlackElo "2588"]
[TimeControl "180+1"]
[EndTime "10:19:28 PST"]
[Termination "jefferyx won by resignation"]

1. d4 {[%clk 0:03:00.9]} 1... Nf6 {[%clk 0:02:55.9]} 2. c4 {[%clk 0:03:00.7]}
2... g6 {[%clk 0:02:56.3]} 3. f3 {[%clk 0:03:00]} 3... Bg7 {[%clk 0:02:54.8]} 4.
e4 {[%clk 0:02:59.7]} 4... d6 {[%clk 0:02:55.4]} 5. Nc3 {[%clk 0:02:59.8]} 5...
O-O {[%clk 0:02:50.8]} 6. Be3 {[%clk 0:03:00.1]} 6... c5 {[%clk 0:02:48.7]} 7.
Nge2 {[%clk 0:02:56]} 7... Nc6 {[%clk 0:02:46.3]} 8. d5 {[%clk 0:02:45.2]} 8...
Ne5 {[%clk 0:02:42.2]} 9. Ng3 {[%clk 0:02:45.6]} 9... Qa5 {[%clk 0:02:21.4]} 10.
Be2 {[%clk 0:02:40.8]} 10... h5 {[%clk 0:02:05.3]} 11. O-O {[%clk 0:02:39.8]}
11... h4 {[%clk 0:02:04.5]} 12. Nh1 {[%clk 0:02:39.8]} 12... Qb4 {[%clk
0:01:55]} 13. Qb3 {[%clk 0:02:38.4]} 13... Qxb3 {[%clk 0:01:41.4]} 14. axb3
{[%clk 0:02:39.3]} 14... Nh5 {[%clk 0:01:33.8]} 15. Nf2 {[%clk 0:02:22.3]} 15...
f5 {[%clk 0:01:31.5]} 16. f4 {[%clk 0:02:03]} 16... Ng4 {[%clk 0:01:27.4]} 17.
Nxg4 {[%clk 0:02:02.7]} 17... fxg4 {[%clk 0:01:28.3]} 18. e5 {[%clk 0:00:51.9]}
18... Bf5 {[%clk 0:01:22.1]} 19. Nb5 {[%clk 0:00:47.4]} 19... dxe5 {[%clk
0:01:03.2]} 20. fxe5 {[%clk 0:00:43.7]} 20... Bxe5 {[%clk 0:01:04.1]} 21. Bxc5
{[%clk 0:00:43.1]} 21... a6 {[%clk 0:00:58]} 22. Nc3 {[%clk 0:00:36.8]} 22...
Rf7 {[%clk 0:00:52.3]} 23. Rae1 {[%clk 0:00:30.3]} 23... Nf4 {[%clk 0:00:32.7]}
24. Rf2 {[%clk 0:00:25.6]} 24... g3 {[%clk 0:00:28.1]} 25. hxg3 {[%clk
0:00:26.5]} 25... hxg3 {[%clk 0:00:28]} 26. Rf3 {[%clk 0:00:27.2]} 26... Bg4
{[%clk 0:00:25.6]} 27. Re3 {[%clk 0:00:20.4]} 27... Bxc3 {[%clk 0:00:21.9]} 28.
bxc3 {[%clk 0:00:02.2]} 28... Nxe2+ {[%clk 0:00:17.8]} 29. R3xe2 {[%clk
0:00:03.1]} 29... Bxe2 {[%clk 0:00:17.8]} 30. Rxe2 {[%clk 0:00:04]} 30... Raf8
{[%clk 0:00:15.9]} 31. Re1 {[%clk 0:00:04.9]} 31... Re8 {[%clk 0:00:11.5]} 32.
d6 {[%clk 0:00:04.7]} 32... e5 {[%clk 0:00:11.6]} 33. Re3 {[%clk 0:00:04.2]}
33... e4 {[%clk 0:00:10.5]} 34. Rxg3 {[%clk 0:00:04.1]} 34... Kh7 {[%clk
0:00:09]} 35. Rh3+ {[%clk 0:00:04.1]} 35... Kg8 {[%clk 0:00:08.4]} 36. Bd4
{[%clk 0:00:05]} 36... Rh7 {[%clk 0:00:08.8]} 37. Rxh7 {[%clk 0:00:03.5]} 37...
Kxh7 {[%clk 0:00:09.7]} 38. Bf6 {[%clk 0:00:04.1]} 38... e3 {[%clk 0:00:07.3]}
39. d7 {[%clk 0:00:04.2]} 39... e2 {[%clk 0:00:06.8]} 40. dxe8=Q {[%clk
0:00:03.9]} 1-0

[Event "*** Titled Tuesday Blitz"]
[Site "Chess.com"]
[Date "2021.02.16"]
[Round "2"]
[White "xamax2000"]
[Black "drragnar1"]
[Result "1-0"]
[WhiteElo "2671"]
[BlackElo "2396"]
[TimeControl "180+1"]
[EndTime "10:19:29 PST"]
[Termination "xamax2000 won by resignation"]

1. d4 {[%clk 0:03:00.9]} 1... Nf6 {[%clk 0:02:58.8]} 2. c4 {[%clk 0:03:00.6]}
2... c5 {[%clk 0:02:59.3]} 3. d5 {[%clk 0:03:00.2]} 3... e5 {[%clk 0:02:59.6]}
4. Nc3 {[%clk 0:02:59.7]} 4... d6 {[%clk 0:02:59.5]} 5. e4 {[%clk 0:03:00.1]}
5... Be7 {[%clk 0:02:59.9]} 6. h3 {[%clk 0:02:53.1]} 6... O-O {[%clk 0:02:58.8]}
7. Nf3 {[%clk 0:02:53.5]} 7... Ne8 {[%clk 0:02:58.6]} 8. Bd3 {[%clk 0:02:53.9]}
8... Nd7 {[%clk 0:02:55.1]} 9. Be3 {[%clk 0:02:51]} 9... g6 {[%clk 0:02:54.8]}
10. g4 {[%clk 0:02:50.5]} 10... Ng7 {[%clk 0:02:54.9]} 11. Rg1 {[%clk 0:02:44]}
11... Kh8 {[%clk 0:02:52.5]} 12. Qc2 {[%clk 0:02:41.1]} 12... a6 {[%clk
0:02:50.5]} 13. a4 {[%clk 0:02:38.6]} 13... Nf6 {[%clk 0:02:44.2]} 14. Nd2
{[%clk 0:02:33.6]} 14... h5 {[%clk 0:02:38.6]} 15. f3 {[%clk 0:02:32.4]} 15...
Nfe8 {[%clk 0:02:25.7]} 16. Nf1 {[%clk 0:02:10.3]} 16... h4 {[%clk 0:02:13.9]}
17. Qd2 {[%clk 0:02:06.9]} 17... g5 {[%clk 0:02:05]} 18. Bf2 {[%clk 0:02:03.7]}
18... Nc7 {[%clk 0:01:53.4]} 19. Ne3 {[%clk 0:01:38.2]} 19... Rb8 {[%clk
0:01:48.2]} 20. Qe2 {[%clk 0:01:28.3]} 20... Kg8 {[%clk 0:01:40.1]} 21. a5
{[%clk 0:01:24]} 21... b6 {[%clk 0:01:37.5]} 22. axb6 {[%clk 0:01:24.9]} 22...
Rxb6 {[%clk 0:01:38.4]} 23. Kf1 {[%clk 0:01:23.1]} 23... Bd7 {[%clk 0:01:35.7]}
24. Kg2 {[%clk 0:01:22.2]} 24... Qb8 {[%clk 0:01:11.5]} 25. Ra2 {[%clk
0:01:21.7]} 25... Qb7 {[%clk 0:00:59.7]} 26. Rb1 {[%clk 0:01:08.2]} 26... a5
{[%clk 0:00:55.9]} 27. Qc2 {[%clk 0:01:06.4]} 27... Na6 {[%clk 0:00:53.7]} 28.
Rxa5 {[%clk 0:01:04.1]} 28... Nb4 {[%clk 0:00:52.4]} 29. Qd2 {[%clk 0:01:04.8]}
29... Ra8 {[%clk 0:00:49.8]} 30. Rxa8+ {[%clk 0:01:03.4]} 30... Qxa8 {[%clk
0:00:50.7]} 31. Be2 {[%clk 0:00:59.5]} 31... f6 {[%clk 0:00:48.9]} 32. Qc1
{[%clk 0:00:52.4]} 32... Ra6 {[%clk 0:00:47.1]} 33. Nc2 {[%clk 0:00:50.1]} 33...
Na2 {[%clk 0:00:37.3]} 34. Nxa2 {[%clk 0:00:49.5]} 34... Rxa2 {[%clk 0:00:38.2]}
35. Ra1 {[%clk 0:00:43.9]} 35... Bd8 {[%clk 0:00:37.2]} 36. Be1 {[%clk
0:00:38.6]} 36... Kf8 {[%clk 0:00:30.9]} 37. Bc3 {[%clk 0:00:34.3]} 37... Ke7
{[%clk 0:00:29.4]} 38. Rxa2 {[%clk 0:00:33.6]} 38... Qxa2 {[%clk 0:00:29.2]} 39.
Qa1 {[%clk 0:00:34.5]} 39... Qb3 {[%clk 0:00:28.8]} 40. Ne3 {[%clk 0:00:34]}
40... Bb6 {[%clk 0:00:22]} 41. Qa8 {[%clk 0:00:33.8]} 41... Bd8 {[%clk 0:00:19]}
42. Bd1 {[%clk 0:00:30.2]} 42... Qb6 {[%clk 0:00:17.7]} 43. Ba4 {[%clk
0:00:30.2]} 43... Bxa4 {[%clk 0:00:15.3]} 44. Qxa4 {[%clk 0:00:31.1]} 44... Qb7
{[%clk 0:00:15.8]} 45. Kf2 {[%clk 0:00:31.1]} 45... Qb6 {[%clk 0:00:15.7]} 46.
Ke2 {[%clk 0:00:31.3]} 46... Qb7 {[%clk 0:00:16.1]} 47. Kd2 {[%clk 0:00:31.7]}
47... Ne8 {[%clk 0:00:15.7]} 48. Nf5+ {[%clk 0:00:31.2]} 48... Kf8 {[%clk
0:00:12.1]} 49. Qxe8+ {[%clk 0:00:32.1]} 49... Kxe8 {[%clk 0:00:11.6]} 50. Nxd6+
{[%clk 0:00:33]} 1-0

[Event "*** Titled Tuesday Blitz"]
[Site "Chess.com"]
[Date "2021.02.16"]
[Round "2"]
[White "MarkoPe"]
[Black "Problematique_99"]
[Result "0-1"]
[WhiteElo "2213"]
[BlackElo "2443"]
[TimeControl "180+1"]
[EndTime "10:19:29 PST"]
[Termination "Problematique_99 won on time"]

1. e4 {[%clk 0:02:58.8]} 1... c5 {[%clk 0:02:58.5]} 2. Nf3 {[%clk 0:02:58.3]}
2... Nc6 {[%clk 0:02:58.5]} 3. d4 {[%clk 0:02:58.2]} 3... cxd4 {[%clk
0:02:59.3]} 4. Nxd4 {[%clk 0:02:59.1]} 4... g6 {[%clk 0:02:59.5]} 5. c4 {[%clk
0:02:59]} 5... Nf6 {[%clk 0:02:59.1]} 6. Nc3 {[%clk 0:02:58.4]} 6... d6 {[%clk
0:02:59.5]} 7. Be2 {[%clk 0:02:57.2]} 7... Nxd4 {[%clk 0:02:58.4]} 8. Qxd4
{[%clk 0:02:58.1]} 8... Bg7 {[%clk 0:02:59]} 9. Be3 {[%clk 0:02:56.7]} 9... O-O
{[%clk 0:02:58.7]} 10. Qd2 {[%clk 0:02:57.4]} 10... a5 {[%clk 0:02:58.8]} 11. a4
{[%clk 0:02:39.8]} 11... Be6 {[%clk 0:02:51.9]} 12. O-O {[%clk 0:02:37.7]} 12...
Nd7 {[%clk 0:02:39.2]} 13. f4 {[%clk 0:02:18.9]} 13... Rc8 {[%clk 0:02:30]} 14.
b3 {[%clk 0:02:01.4]} 14... Nc5 {[%clk 0:02:28.7]} 15. Rab1 {[%clk 0:01:58.8]}
15... Bxc3 {[%clk 0:02:17.3]} 16. Qxc3 {[%clk 0:01:59.7]} 16... Nxe4 {[%clk
0:02:17.2]} 17. Qd4 {[%clk 0:01:47.5]} 17... f5 {[%clk 0:02:14.9]} 18. Bf3
{[%clk 0:01:41.3]} 18... Qd7 {[%clk 0:02:05.6]} 19. Qb6 {[%clk 0:01:34.1]} 19...
Ra8 {[%clk 0:01:57.4]} 20. Rbd1 {[%clk 0:01:24.4]} 20... Ra6 {[%clk 0:01:52.5]}
21. Qb5 {[%clk 0:01:19.1]} 21... Qc7 {[%clk 0:01:12.8]} 22. Bd4 {[%clk
0:01:01.3]} 22... Bd7 {[%clk 0:01:03.8]} 23. Bxe4 {[%clk 0:00:33.6]} 23... Bxb5
{[%clk 0:00:39.7]} 24. Bd5+ {[%clk 0:00:33]} 24... Rf7 {[%clk 0:00:38.3]} 25.
axb5 {[%clk 0:00:32.3]} 25... Ra8 {[%clk 0:00:38.3]} 26. Rfe1 {[%clk 0:00:28.6]}
26... Re8 {[%clk 0:00:31.6]} 27. b6 {[%clk 0:00:19.8]} 27... Qd8 {[%clk
0:00:24.1]} 28. Bc3 {[%clk 0:00:09.6]} 28... Qxb6+ {[%clk 0:00:22.4]} 29. Kh1
{[%clk 0:00:09.8]} 29... Kf8 {[%clk 0:00:19.5]} 30. Bxf7 {[%clk 0:00:08.3]}
30... Kxf7 {[%clk 0:00:20.4]} 31. Rb1 {[%clk 0:00:05.2]} 31... Rc8 {[%clk
0:00:17.7]} 32. h3 {[%clk 0:00:03.5]} 32... Qa6 {[%clk 0:00:14.1]} 33. Kh2
{[%clk 0:00:04]} 33... a4 {[%clk 0:00:14.5]} 34. b4 {[%clk 0:00:03.8]} 34...
Qxc4 {[%clk 0:00:14.3]} 35. Bd2 {[%clk 0:00:03.1]} 35... Qd3 {[%clk 0:00:14.2]}
36. Be3 {[%clk 0:00:03.1]} 36... Rc2 {[%clk 0:00:13.7]} 37. b5 {[%clk
0:00:03.7]} 37... a3 {[%clk 0:00:12.1]} 38. Bg1 {[%clk 0:00:02.8]} 38... a2
{[%clk 0:00:11.8]} 39. Ra1 {[%clk 0:00:03.2]} 39... Qd5 {[%clk 0:00:11.8]} 0-1